fUST/lending_fUST_20250624
["ID","MTS","AMOUNT","RATE_DAILY","PERIOD"]
[367208548,1750702252254,-500.0,0.00019873,2]
[367208549,1750702252265,-500.0,0.00019873,2]
[367208550,1750702252278,-500.0,0.00019873,2]
[367208551,1750702252289,-500.0,0.00019873,2]
[367208552,1750702252300,-500.0,0.00019873,2]
[367208553,1750702252310,-500.0,0.00019873,2]
[367208554,1750702252323,-500.0,0.00019873,2]
[367208555,1750702252333,-500.0,0.00019873,2]
[367208556,1750702252343,-500.0,0.00019873,2]
[367208557,1750702252355,-600.0,0.00019873,2]
[367208558,1750702252366,-500.0,0.00019873,2]
[367208559,1750702252377,-500.0,0.00019873,2]
[367208560,1750702252386,-500.0,0.00019873,2]
[367208561,1750702252396,-500.0,0.00019873,2]
[367208562,1750702252406,-632.98579875,0.00019873,2]
[367208563,1750702252416,-500.0,0.00019873,2]
[367208564,1750702252426,-500.0,0.00019873,2]
[367208565,1750702252435,-500.0,0.00019873,2]
[367208566,1750702252447,-500.0,0.00019873,2]
[367208567,1750702252456,-500.0,0.00019873,2]
[367208568,1750702252466,-337.45962537,0.00019873,2]
[367208569,1750702252475,-500.0,0.00019873,2]
[367208570,1750702252485,-500.0,0.00019873,2]
[367208571,1750702252494,-500.0,0.00019873,2]
[367208572,1750702252504,-500.0,0.00019873,2]
[367208573,1750702252514,-160.841049,0.00019873,2]
[367208574,1750702252524,-151.0,0.00019873,2]
[367208575,1750702252535,-151.0,0.00019873,2]
[367208576,1750702252545,-151.0,0.00019873,2]
[367208577,1750702252555,-151.0,0.00019873,2]
[367208578,1750702252564,-218.52795709,0.00019873,2]
[367208579,1750702252574,-303.644146,0.00019873,2]
[367208580,1750702252584,-303.644146,0.00019873,2]
[367208581,1750702252594,-151.0,0.00019873,2]
[367208582,1750702252604,-151.0,0.00019873,2]
[367208583,1750702252614,-667.55761899,0.00019881,2]
[367208584,1750702252624,-151.0,0.00019881,2]
[367208585,1750702252633,-151.0,0.00019881,2]
[367208586,1750702252644,-151.0,0.00019881,2]
[367208587,1750702252654,-151.0,0.00019881,2]
[367208588,1750702252666,-151.0,0.00019881,2]
[367208589,1750702252676,-500.0,0.00019881,2]
[367208590,1750702252686,-151.0,0.00019881,2]
[367208591,1750702252697,-151.8409273,0.00019881,2]
[367208592,1750702252707,-151.0,0.00019881,2]
[367208593,1750702252718,-151.0,0.00019881,2]
[367208594,1750702252728,-152.14900843,0.00019881,2]
[367208595,1750702252737,-1168.664466,0.00019881,2]
[367208596,1750702252747,-1168.664466,0.00019881,2]
[367208597,1750702252756,-500.0,0.00019881,2]
[367208598,1750702252765,-551.0,0.00019881,2]
[367208599,1750702252775,-151.0,0.00019881,2]
[367208600,1750702252786,-500.0,0.00019881,2]
[367208601,1750702252796,-500.0,0.00019881,2]
[367208602,1750702252805,-500.0,0.00019881,2]
[367208603,1750702252815,-500.0,0.00019881,2]
[367208604,1750702252840,-500.0,0.00019881,2]
[367208605,1750702252849,-500.0,0.00019881,2]
[367208606,1750702252859,-151.0,0.00019881,2]
[367208607,1750702252869,-151.0,0.00019881,2]
[367208608,1750702252879,-500.0,0.00019881,2]
[367208609,1750702252888,-151.0,0.00019881,2]
[367208610,1750702252898,-151.0,0.00019881,2]
[367208611,1750702252908,-151.0,0.00019881,2]
[367208612,1750702252923,-500.0,0.00019881,2]
[367208613,1750702253001,-151.0,0.00019881,2]
[367208614,1750702253011,-155.48075089,0.00019881,2]
[367208615,1750702253020,-500.0,0.00019881,2]
[367208616,1750702253029,-151.0,0.00019881,2]
[367208617,1750702253038,-151.0,0.00019881,2]
[367208618,1750702253048,-500.0,0.00019881,2]
[367208619,1750702253058,-151.0,0.00019881,2]
[367208620,1750702253067,-500.0,0.00019881,2]
[367208621,1750702253076,-500.0,0.00019881,2]
[367208622,1750702253085,-168.61594065,0.00019881,2]
[367208623,1750702253095,-500.0,0.00019881,2]
[367208624,1750702253104,-151.0,0.00019881,2]
[367208625,1750702253113,-151.0,0.00019881,2]
[367208626,1750702253122,-500.0,0.00019881,2]
[367208627,1750702253131,-747.87638257,0.00019896,2]
[367208628,1750702253141,-151.0,0.000199,2]
[367208629,1750702253159,-151.0,0.000199,2]
[367208630,1750702253170,-151.0,0.000199,2]
[367208631,1750702253179,-151.0,0.000199,2]
[367208632,1750702253188,-151.0,0.000199,2]
[367208633,1750702253197,-151.0,0.000199,2]
[367208634,1750702253207,-205.184865,0.00019908,2]
[367208635,1750702253216,-205.184865,0.00019908,2]
[367208636,1750702253226,-151.0,0.00019908,2]
[367208637,1750702253235,-151.0,0.00019908,2]
[367208638,1750702253244,-178.16333721,0.00019908,2]
[367208639,1750702253254,-500.0,0.00019908,2]
[367208640,1750702253264,-151.0,0.00019908,2]
[367208641,1750702253274,-151.0,0.00019908,2]
[367208642,1750702253286,-151.0,0.00019908,2]
[367208643,1750702253295,-500.0,0.00019908,2]
[367208644,1750702253305,-551.0,0.00019908,2]
[367208645,1750702253314,-151.0,0.00019908,2]
[367208646,1750702253325,-500.0,0.00019908,2]
[367208647,1750702253335,-500.0,0.00019908,2]
[367208648,1750702253343,-500.0,0.00019908,2]
[367208649,1750702253353,-500.0,0.00019908,2]
[367208650,1750702253364,-500.0,0.00019908,2]
[367208651,1750702253375,-500.0,0.00019908,2]
[367208652,1750702253384,-151.0,0.00019908,2]
[367208653,1750702253393,-151.0,0.00019908,2]
[367208654,1750702253402,-500.0,0.00019908,2]
[367208655,1750702253412,-198.0,0.00019908,2]
[367208656,1750702253421,-151.0,0.00019908,2]
[367208657,1750702253430,-151.0,0.00019908,2]
[367208658,1750702253439,-500.0,0.00019908,2]
[367208659,1750702253448,-500.0,0.00019908,2]
[367208660,1750702253458,-151.0,0.00019908,2]
[367208661,1750702253467,-500.0,0.00019908,2]
[367208662,1750702253477,-500.0,0.00019908,2]
[367208663,1750702253487,-500.0,0.00019908,2]
[367208664,1750702253496,-614.58157554,0.00019908,2]
[367208665,1750702253506,-151.0,0.00019908,2]
[367208666,1750702253515,-254.80061498,0.00019908,2]
[367208667,1750702253525,-500.0,0.00019908,2]
[367208668,1750702253534,-151.0,0.00019936,2]
[367208669,1750702253543,-500.0,0.00019936,2]
[367208670,1750702253554,-198.76709495,0.00019936,2]
[367208671,1750702253564,-151.0,0.00019936,2]
[367208672,1750702253574,-151.0,0.00019936,2]
[367208673,1750702253584,-500.0,0.00019936,2]
[367208674,1750702253593,-551.0,0.00019936,2]
[367208675,1750702253603,-259.55586604,0.00019936,2]
[367208676,1750702253612,-500.0,0.00019936,2]
[367208677,1750702253621,-500.0,0.00019936,2]
[367208678,1750702253631,-500.0,0.00019936,2]
[367208679,1750702253641,-500.0,0.00019936,2]
[367208680,1750702253650,-500.0,0.00019936,2]
[367208681,1750702253659,-500.0,0.00019936,2]
[367208682,1750702253672,-151.0,0.00019936,2]
[367208683,1750702253682,-151.0,0.00019936,2]
[367208684,1750702253692,-500.0,0.00019936,2]
[367208685,1750702253702,-151.0,0.00019936,2]
[367208686,1750702253711,-151.0,0.00019936,2]
[367208687,1750702253721,-551.37202529,0.00019936,2]
[367208688,1750702253730,-500.82735152,0.00019936,2]
[367208689,1750702253740,-151.0,0.00019936,2]
[367208690,1750702253749,-559.55949752,0.00019936,2]
[367208691,1750702253758,-500.0,0.00019936,2]
[367208692,1750702253769,-567.97560925,0.00019936,2]
[367208693,1750702253778,-191.01076463,0.00019936,2]
[367208694,1750702253787,-151.0,0.00019936,2]
[367208695,1750702253796,-460.0,0.00019936,2]
[367208696,1750702253805,-460.0,0.00019936,2]
[367208697,1750702253815,-553.72,0.00019936,2]
[367208698,1750702253824,-183.723989,0.00019936,2]
[367208699,1750702253833,-1171.058408,0.00019936,2]
[367208700,1750702253843,-183.723989,0.00019936,2]
[367208701,1750702253852,-1171.058408,0.00019936,2]
[367208702,1750702253861,-653.33,0.00019936,2]
[367208703,1750702253870,-677.47,0.00019936,2]
[367208704,1750702253879,-934.6,0.00019936,2]
[367208705,1750702253888,-928.71,0.00019936,2]
[367208706,1750702253897,-6794.43,0.00019936,2]
[367208707,1750702253907,-460.0,0.00019936,2]
[367208708,1750702253920,-586.68,0.00019936,2]
[367208709,1750702253929,-674.21,0.00019936,2]
[367208710,1750702253938,-440.0,0.00019936,2]
[367208711,1750702253947,-6749.54,0.00019936,2]
[367208712,1750702253957,-460.0,0.00019936,2]
[367208713,1750702253966,-1068.57,0.00019936,2]
[367208714,1750702253976,-460.0,0.00019936,2]
[367208715,1750702253985,-460.0,0.00019936,2]
[367208716,1750702253994,-460.0,0.00019937,2]
[367208717,1750702254004,-460.0,0.00019937,2]
[367208718,1750702254012,-460.0,0.00019937,2]
[367208719,1750702254022,-1400.84,0.00019937,2]
[367208720,1750702254031,-1342.47,0.00019937,2]
[367208721,1750702254041,-460.0,0.00019937,2]
[367208722,1750702254051,-554.93,0.00019937,2]
[367208723,1750702254060,-606.87,0.00019937,2]
[367208724,1750702254069,-543.92,0.00019937,2]
[367208725,1750702254079,-869.83,0.00019937,2]
[367208726,1750702254088,-486.25,0.00019937,2]
[367208727,1750702254097,-829.58,0.00019937,2]
[367208728,1750702254106,-460.0,0.00019937,2]
[367208729,1750702254115,-460.0,0.00019937,2]
[367208730,1750702254124,-5481.59,0.00019937,2]
[367208731,1750702254133,-460.0,0.00019937,2]
[367208732,1750702254142,-460.0,0.00019937,2]
[367208733,1750702254151,-460.0,0.00019937,2]
[367208734,1750702254160,-460.0,0.00019937,2]
[367208735,1750702254171,-460.0,0.00019937,2]
[367208736,1750702254179,-1991.7,0.00019937,2]
[367208737,1750702254188,-585.11,0.00019937,2]
[367208738,1750702254196,-1023.28,0.00019937,2]
[367208739,1750702254206,-460.0,0.00019937,2]
[367208740,1750702254217,-4573.78,0.00019937,2]
[367208741,1750702254228,-460.0,0.00019937,2]
[367208742,1750702254238,-514.23,0.00019937,2]
[367208743,1750702254248,-4501.74,0.00019937,2]
[367208744,1750702254261,-460.0,0.00019937,2]
[367208745,1750702254273,-7625.39,0.00019937,2]
[367208746,1750702254286,-1430.08,0.00019937,2]
[367208747,1750702254296,-1777.53,0.00019937,2]
[367208748,1750702254305,-151.0,0.00019937,2]
[367208749,1750702254316,-460.0,0.00019937,2]
[367208750,1750702254325,-3427.78,0.00019937,2]
[367208751,1750702254334,-7632.03,0.00019937,2]
[367208752,1750702254343,-460.0,0.00019937,2]
[367208753,1750702254352,-3044.38,0.00019937,2]
[367208754,1750702254362,-568.48,0.00019937,2]
[367208755,1750702254371,-2095.8,0.00019937,2]
[367208756,1750702254381,-460.0,0.00019937,2]
[367208757,1750702254391,-460.0,0.00019937,2]
[367208758,1750702254400,-460.0,0.00019937,2]
[367208759,1750702254409,-151.0,0.00019941,2]
[367208760,1750702254422,-151.0,0.00019941,2]
[367208761,1750702254431,-155.313187,0.00019941,2]
[367208762,1750702254440,-151.0,0.00019941,2]
[367208763,1750702254450,-151.0,0.00019941,2]
[367208764,1750702254460,-151.0,0.00019941,2]
[367208765,1750702254469,-151.0,0.00019941,2]
[367208766,1750702254479,-153.583786,0.00019941,2]
[367208767,1750702254489,-151.0,0.00019941,2]
[367208768,1750702254499,-334.634876,0.00019941,2]
[367208769,1750702254509,-151.0,0.00019941,2]
[367208770,1750702254519,-334.634876,0.00019941,2]
[367208771,1750702254528,-181.696044,0.00019941,2]
[367208772,1750702254538,-181.696044,0.00019941,2]
[367208773,1750702254548,-151.0,0.00019941,2]
[367208774,1750702254557,-151.0,0.00019941,2]
[367208775,1750702254567,-195.596995,0.00019941,2]
[367208776,1750702254576,-195.596995,0.00019941,2]
[367208777,1750702254586,-164.96795,0.00019941,2]
[367208778,1750702254595,-164.96795,0.00019941,2]
[367208779,1750702254605,-1201.637698,0.00019941,2]
[367208780,1750702254616,-1201.637698,0.00019941,2]
[367208781,1750702254626,-200.774812,0.00019941,2]
[367208782,1750702254636,-200.774812,0.00019941,2]
[367208783,1750702254645,-481.501728,0.00019941,2]
[367208784,1750702254656,-481.501728,0.00019941,2]
[367208785,1750702254667,-194.186962,0.00019941,2]
[367208786,1750702254676,-194.186962,0.00019941,2]
[367208787,1750702254686,-402.544214,0.00019941,2]
[367208788,1750702254696,-402.544214,0.00019941,2]
[367208789,1750702254706,-151.0,0.00019941,2]
[367208790,1750702254716,-356.626254,0.00019941,2]
[367208791,1750702254726,-356.626254,0.00019941,2]
[367208792,1750702254736,-201.81303077,0.0001995,2]
[367208793,1750702254746,-198.83371723,0.00019963,2]
[367208794,1750702254755,-164.70744157,0.00019963,2]
[367208795,1750702254765,-500.0,0.00019963,2]
[367208796,1750702254775,-551.0,0.00019963,2]
[367208797,1750702254784,-500.0,0.00019963,2]
[367208798,1750702254794,-500.0,0.00019963,2]
[367208799,1750702254803,-500.0,0.00019963,2]
[367208800,1750702254812,-151.0,0.00019963,2]
[367208801,1750702254822,-292.00950483,0.00019963,2]
[367208802,1750702254831,-207.11734642,0.00019963,2]
[367208803,1750702254841,-192.4422019,0.00019963,2]
[367208804,1750702254852,-151.0,0.00019963,2]
[367208805,1750702254861,-151.0,0.00019963,2]
[367208806,1750702254871,-500.0,0.00019963,2]
[367208807,1750702254881,-577.4314205,0.00019978,2]
[367208808,1750702254890,-67488.36905524,0.0001999,2]
[367208809,1750702254899,-151.0,0.0001999,2]
[367208810,1750702254909,-151.0,0.0001999,2]
[367208811,1750702254920,-151.0,0.0001999,2]
[367208812,1750702254930,-151.0,0.0001999,2]
[367208813,1750702254940,-151.0,0.0001999,2]
[367208814,1750702254949,-151.0,0.0001999,2]
[367208815,1750702254959,-220.465247,0.0001999,2]
[367208816,1750702254968,-205.184865,0.0001999,2]
[367208817,1750702254977,-205.184865,0.0001999,2]
[367208818,1750702254987,-151.0,0.0001999,2]
[367208819,1750702254996,-1168.664466,0.0001999,2]
[367208820,1750702255006,-151.0,0.0001999,2]
[367208821,1750702255016,-151.0,0.0001999,2]
[367208822,1750702255026,-1168.664466,0.0001999,2]
[367208823,1750702255036,-303.644146,0.0001999,2]
[367208824,1750702255046,-303.644146,0.0001999,2]
[367208825,1750702255055,-151.0,0.0001999,2]
[367208826,1750702255065,-151.0,0.0001999,2]
[367208827,1750702255075,-183.723989,0.0001999,2]
[367208828,1750702255084,-1171.058408,0.0001999,2]
[367208829,1750702255094,-183.723989,0.0001999,2]
[367208830,1750702255104,-1171.058408,0.0001999,2]
[367208831,1750702255113,-153.545801,0.0001999,2]
[367208832,1750702255123,-500.0,0.00019991,2]
[367208833,1750702255132,-551.0,0.00019991,2]
[367208834,1750702255142,-526.97,0.00019991,2]
[367208835,1750702255151,-214.96199244,0.00019991,2]
[367208836,1750702255161,-151.00261681,0.00019991,2]
[367208837,1750702255174,-219.6707664,0.00019991,2]
[367208838,1750702255183,-555.26171838,0.00019991,2]
[367208839,1750702255193,-4000.0,0.0002,4]
[367208840,1750702255202,-372.58405531,0.0002,2]
[367208841,1750702255211,-4543.34108107,0.0002,2]
[367208842,1750702255222,-6846.0,0.0002,2]
[367208843,1750702255231,-3360.0,0.0002,2]
[367208844,1750702255241,-151.0,0.0002,3]
[367208845,1750702255250,-151.0,0.0002,2]
[367208846,1750702255260,-151.0,0.0002,4]
[367208847,1750702255272,-151.0,0.0002,2]
[367208848,1750702255283,-1000.0,0.0002,2]
[367208849,1750702255293,-1831.48392892,0.0002,2]
[367208850,1750702255303,-150.0,0.0002,2]
[367208851,1750702255313,-356.626254,0.0002,2]
[367208852,1750702255323,-356.626254,0.0002,2]
[367208853,1750702255333,-500.0,0.00020018,2]
[367208854,1750702255343,-551.0,0.00020018,2]
[367208855,1750702255353,-747.87638257,0.00020034,2]
[367208856,1750702255363,-8577.24460283,0.00020036,2]
[367208857,1750702255373,-500.0,0.00020045,2]
[367208858,1750702255383,-551.0,0.00020045,2]
[367208859,1750702255394,-500.0,0.00020073,2]
[367208860,1750702255404,-551.0,0.00020073,2]
[367208861,1750702255413,-1927.21230948,0.00020091,2]
[367208862,1750702255426,-151.0,0.000201,4]
[367208863,1750702255436,-151.0,0.000201,3]
[367208864,1750702255446,-451.47180027,0.000201,2]
[367208865,1750702255456,-551.0,0.000201,2]
[367208866,1750702255465,-151.0,0.00020117,2]
[367208867,1750702255475,-25000.0,0.00020117,2]
[367208868,1750702255485,-500.0,0.00020121,2]
[367208869,1750702255495,-1000.0,0.00020121,2]
[367208870,1750702255505,-1000.0,0.00020121,2]
[367208871,1750702255514,-1000.0,0.00020121,2]
[367208872,1750702255525,-578.73844924,0.00020121,2]
[367208873,1750702255535,-1000.0,0.00020121,2]
[367208874,1750702255545,-1000.0,0.00020121,2]
[367208875,1750702255554,-1000.0,0.00020121,2]
[367208876,1750702255564,-553.13788572,0.00020121,2]
[367208877,1750702255574,-1000.0,0.00020121,2]
[367208878,1750702255584,-1000.0,0.00020121,2]
[367208879,1750702255593,-1000.0,0.00020121,2]
[367208880,1750702255603,-1000.0,0.00020121,2]
[367208881,1750702255613,-500.0,0.00020121,2]
[367208882,1750702255623,-1000.0,0.00020121,2]
[367208883,1750702255633,-151.0,0.00020121,2]
[367208884,1750702255643,-152.118465,0.00020121,2]
[367208885,1750702255653,-1201.637698,0.00020121,2]
[367208886,1750702255663,-1201.637698,0.00020121,2]
[367208887,1750702255674,-200.774812,0.00020121,2]
[367208888,1750702255684,-200.774812,0.00020121,2]
[367208889,1750702255693,-194.186962,0.00020121,2]
[367208890,1750702255703,-194.186962,0.00020121,2]
[367208891,1750702255713,-402.544214,0.00020121,2]
[367208892,1750702255723,-402.544214,0.00020121,2]
[367208893,1750702255732,-551.0,0.00020128,2]
[367208894,1750702255741,-604.38,0.00020129,2]
[367208895,1750702255751,-698.94,0.00020129,2]
[367208896,1750702255760,-460.0,0.00020129,2]
[367208897,1750702255769,-460.0,0.00020129,2]
[367208898,1750702255779,-460.0,0.00020129,2]
[367208899,1750702255788,-420.0,0.00020129,2]
[367208900,1750702255798,-620.81,0.00020129,2]
[367208901,1750702255807,-576.95,0.00020129,2]
[367208902,1750702255818,-621.2,0.00020129,2]
[367208903,1750702255827,-526.53,0.00020129,2]
[367208904,1750702255836,-460.0,0.00020129,2]
[367208905,1750702255846,-460.0,0.00020129,2]
[367208906,1750702255855,-460.0,0.00020129,2]
[367208907,1750702255865,-517.27,0.00020129,2]
[367208908,1750702255874,-460.0,0.00020129,2]
[367208909,1750702255884,-460.0,0.00020129,2]
[367208910,1750702255895,-460.0,0.00020129,2]
[367208911,1750702255905,-1387.87,0.00020129,2]
[367208912,1750702255915,-460.0,0.00020129,2]
[367208913,1750702255925,-900.37,0.00020129,2]
[367208914,1750702255935,-410.64371156,0.00020129,2]
[367208915,1750702255944,-460.0,0.00020129,2]
[367208916,1750702255954,-460.0,0.00020129,2]
[367208917,1750702255964,-562.89,0.00020129,2]
[367208918,1750702255974,-1989.83,0.00020129,2]
[367208919,1750702255984,-460.0,0.00020129,2]
[367208920,1750702255995,-460.0,0.00020129,2]
[367208921,1750702256004,-852.85,0.00020129,2]
[367208922,1750702256015,-488.85,0.00020129,2]
[367208923,1750702256025,-460.0,0.00020129,2]
[367208924,1750702256034,-525.2,0.00020129,2]
[367208925,1750702256044,-460.0,0.00020129,2]
[367208926,1750702256053,-696.37,0.00020129,2]
[367208927,1750702256063,-460.0,0.00020129,2]
[367208928,1750702256074,-460.0,0.00020129,2]
[367208929,1750702256083,-460.0,0.00020129,2]
[367208930,1750702256093,-460.0,0.00020129,2]
[367208931,1750702256102,-460.0,0.00020129,2]
[367208932,1750702256112,-460.0,0.00020129,2]
[367208933,1750702256124,-547.44,0.00020129,2]
[367208934,1750702256134,-460.0,0.00020129,2]
[367208935,1750702256143,-608.12,0.00020129,2]
[367208936,1750702256154,-1778.0,0.00020129,2]
[367208937,1750702256163,-715.53,0.00020129,2]
[367208938,1750702256174,-460.0,0.00020129,2]
[367208939,1750702256183,-2810.69,0.00020129,2]
[367208940,1750702256193,-466.49170912,0.00020129,2]
[367208941,1750702256203,-460.0,0.00020129,2]
[367208942,1750702256213,-634.55,0.00020129,2]
[367208943,1750702256222,-2576.68,0.00020129,2]
[367208944,1750702256232,-460.0,0.00020129,2]
[367208945,1750702256242,-460.0,0.00020129,2]
[367208946,1750702256252,-460.0,0.00020129,2]
[367208947,1750702256262,-460.0,0.00020129,2]
[367208948,1750702256272,-1321.89,0.00020129,2]
[367208949,1750702256284,-739.43,0.00020129,2]
[367208950,1750702256294,-460.0,0.00020129,2]
[367208951,1750702256303,-460.0,0.00020129,2]
[367208952,1750702256313,-460.0,0.00020129,2]
[367208953,1750702256323,-487.28,0.00020129,2]
[367208954,1750702256334,-460.0,0.00020129,2]
[367208955,1750702256344,-460.0,0.00020129,2]
[367208956,1750702256354,-460.0,0.00020129,2]
[367208957,1750702256365,-460.0,0.00020129,2]
[367208958,1750702256375,-460.0,0.00020129,2]
[367208959,1750702256385,-183.723989,0.00020129,2]
[367208960,1750702256395,-1171.058408,0.00020129,2]
[367208961,1750702256405,-816.19,0.00020129,2]
[367208962,1750702256417,-183.723989,0.00020129,2]
[367208963,1750702256426,-1171.058408,0.00020129,2]
[367208964,1750702256436,-1455.95,0.00020129,2]
[367208965,1750702256446,-460.0,0.00020129,2]
[367208966,1750702256456,-460.0,0.00020129,2]
[367208967,1750702256466,-1159.89,0.00020129,2]
[367208968,1750702256476,-893.45,0.00020129,2]
[367208969,1750702256486,-3219.82,0.00020129,2]
[367208970,1750702256497,-492.39,0.00020129,2]
[367208971,1750702256506,-460.0,0.00020129,2]
[367208972,1750702256516,-1312.29,0.00020129,2]
[367208973,1750702256527,-398.49768943,0.00020129,2]
[367208974,1750702256536,-300.0,0.00020129,2]
[367208975,1750702256547,-850.61,0.00020129,2]
[367208976,1750702256558,-2063.95,0.00020129,2]
[367208977,1750702256567,-468.72,0.00020129,2]
[367208978,1750702256578,-460.0,0.00020129,2]
[367208979,1750702256587,-571.37,0.00020129,2]
[367208980,1750702256598,-1310.44,0.00020129,2]
[367208981,1750702256608,-2085.6,0.00020129,2]
[367208982,1750702256619,-460.0,0.00020129,2]
[367208983,1750702256783,-460.0,0.00020129,2]
[367208984,1750702256793,-460.0,0.00020129,2]
[367208985,1750702256802,-941.77,0.00020129,2]
[367208986,1750702256812,-982.4,0.00020129,2]
[367208987,1750702256821,-585.79,0.00020129,2]
[367208988,1750702256830,-221.81229182,0.00020129,2]
[367208989,1750702256842,-460.0,0.00020129,2]
[367208990,1750702256852,-460.0,0.00020129,2]
[367208991,1750702256861,-770.98,0.00020129,2]
[367208992,1750702256870,-356.626254,0.00020129,2]
[367208993,1750702256879,-704.38,0.00020129,2]
[367208994,1750702256889,-356.626264,0.00020129,2]
[367208995,1750702256898,-655.58,0.00020129,2]
[367208996,1750702256909,-556.65,0.00020129,2]
[367208997,1750702256921,-460.0,0.00020129,2]
[367208998,1750702256931,-300.31015506,0.00020129,2]
[367208999,1750702256940,-460.0,0.00020131,2]
[367209000,1750702256950,-460.0,0.00020131,2]
[367209001,1750702256959,-460.0,0.00020131,2]
[367209002,1750702256968,-460.0,0.00020131,2]
[367209003,1750702256978,-532.05,0.00020131,2]
[367209004,1750702256988,-205.184865,0.00020131,2]
[367209005,1750702256998,-205.184865,0.00020131,2]
[367209006,1750702257008,-151.0,0.00020131,2]
[367209007,1750702257017,-249.598044,0.00020131,2]
[367209008,1750702257026,-151.0,0.00020131,2]
[367209009,1750702257036,-303.644146,0.00020131,2]
[367209010,1750702257045,-303.644146,0.00020131,2]
[367209011,1750702257054,-151.0,0.00020131,2]
[367209012,1750702257064,-151.0,0.00020131,2]
[367209013,1750702257073,-1284.96,0.00020131,2]
[367209014,1750702257082,-3396.84,0.00020131,2]
[367209015,1750702257091,-402.544214,0.00020131,2]
[367209016,1750702257100,-908.56,0.00020131,2]
[367209017,1750702257110,-460.0,0.00020131,2]
[367209018,1750702257119,-402.544214,0.00020131,2]
[367209019,1750702257129,-460.0,0.00020131,2]
[367209020,1750702257139,-648.74,0.00020131,2]
[367209021,1750702257149,-657.85,0.00020131,2]
[367209022,1750702257158,-510.21293572,0.00020131,2]
[367209023,1750702257170,-460.0,0.00020131,2]
[367209024,1750702257179,-1178.32,0.00020131,2]
[367209025,1750702257189,-460.0,0.00020131,2]
[367209026,1750702257199,-2051.07,0.00020131,2]
[367209027,1750702257208,-15965.38,0.00020131,2]
[367209028,1750702257218,-2376.67,0.00020131,2]
[367209029,1750702257227,-460.0,0.00020131,2]
[367209030,1750702257237,-460.0,0.00020131,2]
[367209031,1750702257246,-1259.65,0.00020131,2]
[367209032,1750702257256,-2831.83,0.00020131,2]
[367209033,1750702257266,-6457.57,0.00020131,2]
[367209034,1750702257279,-1904.77,0.00020131,2]
[367209035,1750702257289,-377.67497711,0.00020132,2]
[367209036,1750702257298,-655.41,0.00020132,2]
[367209037,1750702257308,-460.0,0.00020132,2]
[367209038,1750702257318,-419.94351983,0.00020132,2]
[367209039,1750702257327,-460.0,0.00020132,2]
[367209040,1750702257337,-591.26,0.00020132,2]
[367209041,1750702257347,-460.0,0.00020132,2]
[367209042,1750702257358,-460.0,0.00020133,2]
[367209043,1750702257368,-625.48,0.00020133,2]
[367209044,1750702257378,-474.35,0.00020134,2]
[367209045,1750702257388,-494.06160365,0.00020134,2]
[367209046,1750702257398,-460.0,0.00020134,2]
[367209047,1750702257407,-724.42,0.00020134,2]